bitfinex-derivatives/quotes_BTCF0:USTF0_20251216
["timestamp","ask_amount","ask_price","bid_price","bid_amount"]
[1765909830376,0.10183,87492.0,87480.0,0.01243359]
[1765909830377,0.0891627,87487.0,87486.0,0.07619]
[1765909830575,0.0891627,87487.0,87486.0,0.03768]
[1765909830770,0.0891627,87487.0,87486.0,0.07619]
[1765909831172,0.0891635,87481.0,87480.0,0.0876236]
[1765909831565,0.0891635,87481.0,87480.0,0.07619]
[1765909831767,0.0891635,87481.0,87480.0,0.0876236]
[1765909832069,0.07773,87481.0,87480.0,0.0876236]
[1765909832671,0.07773,87481.0,87480.0,0.0886236]
[1765909837874,0.45455,87492.0,87491.0,0.07318]
[1765909838177,0.4659821,87492.0,87491.0,0.0846122]
[1765909838372,0.43045,87492.0,87491.0,0.0846122]
[1765909838564,0.39503,87492.0,87491.0,0.0846122]
[1765909838963,0.002,87492.0,87491.0,0.4454122]
[1765909840070,0.001,87492.0,87491.0,0.4464122]
[1765909840283,0.001,87492.0,87491.0,0.45793547]
[1765909840987,0.00228578,87498.0,87497.0,0.0846114]
[1765909842179,0.00228578,87498.0,87497.0,0.0856114]
[1765909842986,0.06965,87520.0,87519.0,0.0846084]
[1765909843674,0.0456583,87521.0,87520.0,0.07318]
[1765909843978,0.0114283,87521.0,87520.0,0.07318]
[1765909844184,0.011428,87524.0,87523.0,0.0846077]
[1765909844481,0.081078,87524.0,87523.0,0.0846077]
[1765909845180,0.011428,87524.0,87523.0,0.0846077]
[1765909845773,0.045658,87524.0,87523.0,0.0846077]
[1765909846076,0.43045,87529.0,87528.0,0.07318]
[1765909846383,0.4418772,87529.0,87528.0,0.07318]
[1765909847170,0.4428772,87529.0,87528.0,0.07318]
[1765909847776,0.0820772,87529.0,87528.0,0.07318]
[1765909847971,0.0830772,87529.0,87528.0,0.07318]
[1765909849483,0.07165,87529.0,87528.0,0.07318]
[1765909849883,0.03623,87529.0,87528.0,0.07318]
[1765909850087,0.03623,87529.0,87528.0,0.0947]
[1765909850088,0.002,87529.0,87528.0,0.0947]
[1765909852388,0.07165,87529.0,87528.0,0.0947]
[1765909852691,0.03623,87529.0,87528.0,0.0947]
[1765909852991,0.03623,87529.0,87528.0,0.07318]
[1765909852992,0.07165,87529.0,87528.0,0.07318]
[1765909857090,0.002,87529.0,87528.0,0.09211]
[1765909857978,0.002,87529.0,87528.0,1.59211]
[1765909859090,0.001,87529.0,87528.0,1.59211]
[1765909859397,0.0456566,87534.0,87533.0,0.0846067]
[1765909859590,0.0810766,87534.0,87533.0,0.4454067]
[1765909859993,0.06965,87534.0,87533.0,0.4454067]
[1765909860194,0.0114263,87537.0,87536.0,0.0846063]
[1765909860394,0.0810763,87537.0,87536.0,0.0846063]
[1765909861287,0.0114263,87537.0,87536.0,0.0846063]
[1765909861483,0.0810763,87537.0,87536.0,0.0846063]
[1765909861687,0.00228474,87538.0,87537.0,0.07318]
[1765909862095,0.03651474,87538.0,87537.0,0.07318]
[1765909862293,0.07193474,87538.0,87537.0,0.07318]
[1765909862791,0.00228474,87538.0,87537.0,0.07318]
[1765909863400,0.03751474,87538.0,87537.0,0.07318]
[1765909864088,0.43591446,87555.0,87536.0,0.0114263]
[1765909864089,0.0449451,87546.0,87545.0,0.0736252]
[1765909864290,0.0780851,87546.0,87545.0,0.0736252]
[1765909864488,0.06666,87546.0,87545.0,0.0736252]
[1765909864689,0.39584,87555.0,87554.0,0.073624]
[1765909864690,0.0780839,87555.0,87554.0,0.073624]
[1765909864885,0.06666,87555.0,87554.0,0.073624]
[1765909866791,0.38157,87564.0,87561.0,0.0736231]
[1765909866792,0.06666,87562.0,87561.0,0.0736231]
[1765909866991,0.0780829,87562.0,87561.0,0.0736231]
[1765909867500,0.06666,87562.0,87561.0,0.0736231]
[1765909867890,0.0780833,87559.0,87558.0,0.43501]
[1765909868398,0.03314,87559.0,87558.0,0.43501]
[1765909868587,0.005,87562.0,87561.0,0.0622]
[1765909869893,0.03514,87562.0,87561.0,0.0622]
[1765909870096,0.004,87562.0,87561.0,0.0622]
[1765909870497,0.03714,87562.0,87561.0,0.0622]
[1765909870894,0.0820829,87562.0,87561.0,0.0622]
[1765909871300,0.004,87562.0,87561.0,0.0622]
[1765909872103,0.0780817,87572.0,87571.0,0.0736218]
[1765909872596,0.3608,87582.0,87577.0,0.073621]
[1765909872797,0.39394,87600.0,87599.0,0.0622]
[1765909873004,0.06666,87600.0,87599.0,0.0622]
[1765909873394,0.05,87601.0,87600.0,0.073618]
[1765909873395,0.11666,87601.0,87600.0,0.073618]
[1765909873600,0.04141806,87601.0,87600.0,0.073618]
[1765909873903,0.03966028,87601.0,87600.0,0.073618]
[1765909874104,0.00228265,87618.0,87617.0,0.0736158]
[1765909874311,3e-08,87618.0,87617.0,0.0736158]
[1765909875007,0.01992,87657.0,87646.0,0.073612]
[1765909875008,0.06666,87647.0,87646.0,0.073612]
[1765909875306,0.06666,87647.0,87646.0,0.011412]
[1765909875505,0.06666,87647.0,87646.0,0.073612]
[1765909875705,0.06666,87654.0,87653.0,0.0622]
[1765909876211,0.06666,87654.0,87648.0,0.01861]
[1765909876212,0.03542161,87658.0,87657.0,0.0622]
[1765909876511,0.00228161,87658.0,87657.0,0.0622]
[1765909877012,0.07852351,87658.0,87657.0,0.01783518]
[1765909877309,0.06711311,87658.0,87657.0,0.08003518]
[1765909877611,0.06711311,87658.0,87657.0,0.08103518]
[1765909877909,0.06711311,87658.0,87657.0,0.08303518]
[1765909878105,0.03359311,87658.0,87657.0,0.08303518]
[1765909878308,0.06811311,87658.0,87657.0,0.08203518]
[1765909879415,0.00245311,87658.0,87657.0,0.08003578]
[1765909880103,0.06811311,87658.0,87657.0,0.08103578]
[1765909880302,0.00045311,87658.0,87657.0,0.0632]
[1765909880502,0.03359311,87658.0,87657.0,0.0652]
[1765909880811,0.00045311,87658.0,87657.0,0.7878]
[1765909881007,0.06711311,87658.0,87657.0,0.7878]
[1765909881214,0.00045311,87658.0,87657.0,0.7878]
[1765909881407,0.00045311,87658.0,87657.0,0.48403395]
[1765909881603,3.11e-06,87658.0,87657.0,0.48403395]
[1765909881911,3.11e-06,87658.0,87657.0,1.20563395]
[1765909882699,3.11e-06,87658.0,87657.0,1.20363395]
[1765909882899,0.03542057,87698.0,87697.0,0.0622]
[1765909883101,0.06666,87694.0,87693.0,0.03089]
[1765909883303,0.01868,87696.0,87689.0,0.03106114]
[1765909883304,0.06666,87690.0,87689.0,0.03106114]
[1765909883503,0.06666,87690.0,87689.0,0.06237114]
[1765909883706,0.06894057,87698.0,87697.0,0.0622]
[1765909883905,0.06894057,87698.0,87697.0,0.423]
[1765909884113,0.07194057,87698.0,87697.0,0.423]
[1765909884510,0.07194057,87698.0,87697.0,0.39169]
[1765909884703,0.08334577,87698.0,87697.0,0.0622]
[1765909884904,0.06666,87694.0,87693.0,0.03189]
[1765909885209,0.06666,87694.0,87693.0,0.001]
[1765909885710,0.06666,87690.0,87689.0,0.00017114]
[1765909887115,0.06766,87690.0,87689.0,0.00017114]
[1765909887812,0.06866,87690.0,87689.0,0.00017114]
[1765909889319,0.06866,87690.0,87689.0,0.06237114]
[1765909889613,0.002,87690.0,87689.0,0.06237114]
[1765909891118,0.03514,87690.0,87689.0,0.06237114]
[1765909891301,0.002,87690.0,87689.0,0.06237114]
[1765909896716,0.001,87690.0,87689.0,0.06237114]
[1765909896917,0.001,87690.0,87689.0,0.06537114]
[1765909897313,0.06956057,87698.0,87697.0,0.0768554]
[1765909897520,0.06956057,87698.0,87697.0,0.42625]
[1765909898315,0.06956057,87698.0,87697.0,0.4376554]
[1765909899323,0.06956057,87698.0,87697.0,0.4396554]
[1765909899620,0.06956057,87698.0,87697.0,0.4406554]
[1765909900417,0.06956057,87698.0,87697.0,0.45848454]
[1765909901611,0.03685057,87698.0,87697.0,0.45848454]
[1765909902024,0.06956057,87698.0,87697.0,0.42530454]
[1765909902212,0.06956057,87698.0,87697.0,0.44707914]
[1765909902412,0.03685057,87698.0,87697.0,0.44707914]
[1765909902719,0.06956057,87698.0,87697.0,0.44707914]
[1765909902916,0.00228057,87698.0,87697.0,0.44707914]
[1765909905221,5.7e-07,87698.0,87697.0,0.44707914]
[1765909905925,5.7e-07,87698.0,87697.0,0.44607914]
[1765909906621,5.7e-07,87698.0,87697.0,1.16175914]
[1765909907008,5.7e-07,87698.0,87697.0,1.56175914]
[1765909907520,0.09256352,87732.0,87697.0,1.56175914]
[1765909907521,0.17124432,87732.0,87731.0,0.06545]
[1765909907721,0.17124432,87732.0,87731.0,0.08327914]
[1765909908320,0.08684432,87732.0,87731.0,0.08327914]
[1765909908720,0.08684432,87732.0,87731.0,0.01782914]
[1765909908915,0.08984432,87732.0,87731.0,0.01782914]
[1765909909323,0.09284432,87732.0,87731.0,0.08327914]
[1765909909626,0.09284432,87732.0,87731.0,0.01782914]
[1765909911117,0.09284432,87732.0,87731.0,0.05009914]
[1765909911316,0.09284432,87732.0,87731.0,0.08327914]
[1765909911622,0.04873352,87732.0,87731.0,0.08327914]
[1765909911923,0.04873352,87732.0,87731.0,0.44407914]
[1765909912719,0.07844352,87732.0,87731.0,0.01782914]
[1765909912920,0.44024352,87732.0,87731.0,0.01782914]
[1765909913114,0.44024352,87732.0,87731.0,0.08327914]
[1765909913930,0.07944352,87732.0,87731.0,0.06545]
[1765909914613,0.07844352,87732.0,87731.0,0.06545]
[1765909914827,0.07844352,87732.0,87731.0,0.42625]
[1765909915024,0.01016352,87732.0,87731.0,0.42625]
[1765909915230,0.00816352,87732.0,87731.0,0.42625]
[1765909915426,0.04373352,87732.0,87731.0,0.42625]
[1765909915619,0.07644352,87732.0,87731.0,0.42625]
[1765909916129,0.07644352,87732.0,87731.0,0.42725]
[1765909916130,0.00816352,87732.0,87731.0,0.42725]
[1765909916332,0.04273352,87732.0,87731.0,0.42725]
[1765909917826,0.07544352,87732.0,87731.0,0.42725]
[1765909918219,0.08684432,87732.0,87731.0,0.42725]
[1765909918717,0.08684432,87732.0,87731.0,0.3618]
[1765909918925,0.08684432,87732.0,87731.0,0.001]
[1765909919233,0.0987018,87724.0,87723.0,0.00017101]
[1765909919430,0.4595018,87724.0,87723.0,0.00017101]
[1765909920327,0.52081268,87724.0,87723.0,0.00017101]
[1765909920518,0.06728,87724.0,87723.0,0.06562101]
[1765909920716,0.03457,87724.0,87723.0,0.06562101]
[1765909921234,0.07644352,87732.0,87731.0,0.06545]
[1765909921532,0.06728,87725.0,87724.0,0.0768518]
[1765909921728,0.07544352,87732.0,87731.0,0.0768509]
[1765909923124,0.07544352,87732.0,87729.0,0.3608]
[1765909923125,0.06728,87730.0,87729.0,0.3608]
[1765909923324,0.0786818,87724.0,87723.0,0.00017101]
[1765909923518,0.4394818,87724.0,87723.0,0.00017101]
[1765909923924,0.4394818,87724.0,87670.0,0.0114089]
[1765909923925,0.00989,87712.0,87704.0,0.0422844]
[1765909924125,0.03162,87698.0,87697.0,0.45296]
[1765909924335,0.06119,87698.0,87697.0,0.4643654]
[1765909924536,0.06119,87698.0,87697.0,0.39168]
[1765909924720,0.06119,87690.0,87689.0,0.00012692]
[1765909924923,0.42199,87690.0,87689.0,0.00012692]
[1765909925225,0.06119,87690.0,87689.0,0.00012692]
[1765909925632,0.3608,87701.0,87689.0,0.00012692]
[1765909925633,0.37909,87704.0,87697.0,0.0726854]
[1765909925833,0.01829,87704.0,87697.0,0.0726854]
[1765909926127,0.01829,87704.0,87697.0,0.4334854]
[1765909926823,0.00989,87712.0,87697.0,0.4334854]
[1765909927132,0.00989,87712.0,87697.0,0.4344854]
[1765909927431,0.06135922,87698.0,87697.0,0.4334854]
[1765909927639,0.00016922,87698.0,87697.0,0.4344854]
[1765909927847,0.06135922,87698.0,87697.0,0.4344854]
[1765909928134,0.06135922,87698.0,87697.0,0.3732054]
[1765909928344,0.00016922,87698.0,87697.0,0.4354854]
[1765909929242,0.06135922,87698.0,87697.0,0.4344854]
[1765909929535,0.06135922,87698.0,87697.0,0.4354854]
[1765909929732,0.00016922,87698.0,87697.0,0.4354854]
[1765909929935,2e-08,87698.0,87697.0,0.4354854]
[1765909930139,2e-08,87698.0,87697.0,0.4344854]
[1765909930432,2e-08,87698.0,87697.0,0.8354854]
[1765909930635,2e-08,87698.0,87697.0,0.89689426]
[1765909930830,2e-08,87698.0,87697.0,0.8364854]
[1765909931526,2e-08,87698.0,87697.0,0.8394854]
[1765909931727,2e-08,87698.0,87697.0,0.4394854]
[1765909931941,2e-08,87698.0,87697.0,1.5552854]
[1765909932139,2e-08,87698.0,87697.0,1.1552854]
[1765909932436,2e-08,87698.0,87697.0,1.1572854]
[1765909933333,0.06119,87730.0,87729.0,0.0726812]
[1765909934539,0.06119,87730.0,87729.0,0.0114012]
[1765909934732,0.06119,87730.0,87729.0,0.0422812]
[1765909935636,0.06119,87730.0,87729.0,0.0726812]
[1765909936135,0.3608,87731.0,87724.0,0.3608]
[1765909936136,0.06119,87725.0,87724.0,0.3608]
[1765909937636,0.07948,87723.0,87722.0,0.011402]
[1765909938540,0.07948,87723.0,87722.0,0.042282]
[1765909939140,0.07948,87723.0,87722.0,0.072682]
[1765909940341,0.02645352,87732.0,87731.0,0.06128]
[1765909940342,0.00816352,87732.0,87731.0,0.06128]
[1765909940542,0.00816352,87732.0,87731.0,0.42208]
[1765909940732,0.08764352,87732.0,87731.0,0.42208]
[1765909941132,0.08764352,87732.0,87731.0,0.3608]
[1765909941333,0.0725913,87728.0,87727.0,0.0114014]
[1765909941633,0.08764352,87732.0,87731.0,0.0726809]
[1765909942234,0.090882,87723.0,87722.0,0.3608]
[1765909942442,0.06119,87722.0,87715.0,0.0114029]
[1765909942642,0.06119,87722.0,87714.0,0.3608]
[1765909942948,0.06119,87722.0,87719.0,0.0114024]
[1765909943145,0.02645352,87732.0,87731.0,0.0726809]
[1765909943146,0.00816352,87732.0,87731.0,0.0726809]
[1765909943447,0.06935352,87732.0,87731.0,0.0726809]
[1765909944036,0.00816352,87732.0,87731.0,0.0726809]
[1765909944545,0.00227953,87738.0,87737.0,0.0726802]
[1765909944750,0.06134775,87758.0,87750.0,0.0726785]
[1765909944751,0.02957,87751.0,87750.0,0.0726785]
[1765909945039,0.06119,87751.0,87750.0,0.4334785]
[1765909945249,0.06119,87751.0,87750.0,0.39168]
[1765909945434,0.06119,87751.0,87750.0,0.4030785]
[1765909946036,0.06119,87751.0,87750.0,1.9030785]
[1765909946231,0.06119,87751.0,87750.0,1.8608]
[1765909946642,0.06219,87751.0,87750.0,0.3608]
[1765909946838,0.06219,87751.0,87750.0,0.42208]
[1765909947240,0.06219,87751.0,87750.0,0.39168]
[1765909947449,0.06319,87751.0,87750.0,0.39168]
[1765909947845,0.06319,87751.0,87750.0,0.42208]
[1765909949648,0.03157,87751.0,87750.0,0.42208]
[1765909949838,0.06319,87751.0,87750.0,0.42208]
[1765909950752,0.0409655,87774.0,87773.0,0.06128]
[1765909950937,0.0725855,87774.0,87773.0,0.06128]
[1765909951138,0.06119,87774.0,87773.0,0.06128]
[1765909951641,0.06119,87774.0,87773.0,0.42208]
[1765909952243,0.0725864,87766.0,87765.0,0.36097089]
[1765909952442,0.059256,87770.0,87769.0,0.06128]
[1765909952644,0.072586,87770.0,87769.0,0.06128]
[1765909952843,0.090876,87770.0,87769.0,0.06128]
[1765909953043,0.090876,87770.0,87769.0,0.03088]
[1765909953656,0.0725864,87766.0,87765.0,0.36097089]
[1765909953847,0.0725864,87766.0,87765.0,0.00017089]
[1765909954544,0.0725864,87766.0,87765.0,0.06240089]
[1765909954952,0.06119,87766.0,87765.0,0.06340089]
[1765909955849,0.01829,87770.0,87769.0,0.072536]
[1765909956051,0.06029,87772.0,87771.0,0.0429657]
[1765909957047,0.06029,87772.0,87771.0,0.0725357]
[1765909957244,0.0716856,87772.0,87771.0,0.0725357]
[1765909957445,0.0716864,87766.0,87765.0,0.39254089]
[1765909957655,0.01843,87770.0,87769.0,0.072536]
[1765909957955,0.03033,87770.0,87769.0,0.072536]
[1765909958257,0.06029,87770.0,87769.0,0.072536]
[1765909958659,0.07872,87770.0,87769.0,0.072536]
[1765909959254,0.06029,87770.0,87769.0,0.072536]
[1765909959561,0.00227849,87778.0,87769.0,0.072536]
[1765909959562,0.00227849,87778.0,87777.0,0.072535]
[1765909959952,0.06256849,87778.0,87777.0,0.072535]
[1765909960765,0.06256849,87778.0,87777.0,0.074535]
[1765909960947,0.06256849,87778.0,87777.0,0.03357]
[1765909961250,0.06256849,87778.0,87777.0,0.03457]
[1765909961451,0.06256849,87778.0,87777.0,0.06414]
[1765909961657,0.03260849,87778.0,87777.0,0.06414]
[1765909961848,0.00227849,87778.0,87777.0,0.06414]
[1765909962157,0.00227849,87778.0,87777.0,0.06214]
[1765909962363,0.00227849,87778.0,87777.0,0.06314]
[1765909963049,0.00227849,87778.0,87777.0,0.06214]
[1765909963250,0.00227849,87778.0,87777.0,0.06314]
[1765909963459,0.00227849,87778.0,87777.0,0.42494]
[1765909964052,0.00227849,87778.0,87777.0,0.42594]
[1765909964248,0.06029,87791.0,87790.0,0.06114]
[1765909964459,0.3608,87798.0,87785.0,0.42194]
[1765909964460,0.0716838,87786.0,87785.0,0.42194]
[1765909965760,0.0716838,87786.0,87785.0,0.3608]
[1765909966152,0.0716838,87786.0,87785.0,0.39237]
[1765909966449,0.0716838,87786.0,87785.0,0.42394]
[1765909966861,0.0716838,87786.0,87785.0,0.3628]
[1765909967166,0.0716838,87786.0,87785.0,0.002]
[1765909967859,0.0716838,87786.0,87768.0,0.3608]
[1765909967860,0.071686,87769.0,87768.0,0.3608]
[1765909968050,0.071686,87769.0,87760.0,0.00099999]
[1765909968051,0.071687,87761.0,87760.0,0.03256999]
[1765909968371,0.071687,87761.0,87758.0,0.3608]
[1765909968372,0.07872,87759.0,87758.0,0.3608]
[1765909968848,0.07872,87759.0,87750.0,0.00099999]
[1765909968849,0.0716883,87751.0,87750.0,0.00017089]
[1765909969159,0.4324883,87751.0,87750.0,0.00017089]
[1765909970956,0.4334883,87751.0,87750.0,0.00017089]
[1765909971670,0.0716895,87742.0,87741.0,0.3608]
[1765909972966,0.0726895,87742.0,87741.0,0.3608]
[1765909974764,0.0716905,87734.0,87733.0,0.00017089]
[1765909975063,0.06029,87734.0,87733.0,0.00017089]
[1765909975260,0.06029,87734.0,87733.0,0.03174089]
[1765909976158,0.0901198,87740.0,87739.0,0.06114]
[1765909976352,0.0901198,87740.0,87733.0,0.00017089]
[1765909976353,0.0298298,87740.0,87737.0,0.0114001]
[1765909976557,0.06029,87738.0,87737.0,0.0114001]
[1765909976761,0.06029,87740.0,87739.0,0.06114]
[1765909976962,0.06029,87740.0,87737.0,0.3722001]
[1765909976963,0.06029,87738.0,87737.0,0.3722001]
[1765909977552,0.06029,87738.0,87737.0,0.4037701]
[1765909977758,0.06029,87738.0,87737.0,0.39237]
[1765909978060,0.06029,87738.0,87737.0,0.3608]
[1765909978262,0.06029,87738.0,87737.0,0.39237]
[1765909978658,0.06029,87738.0,87737.0,0.42194]
[1765909978861,0.00017089,87742.0,87741.0,0.0725396]
[1765909979257,0.00017089,87742.0,87741.0,0.0860396]
[1765909979865,0.0901174,87759.0,87758.0,0.06114]
[1765909980265,0.42109,87761.0,87760.0,0.06114]
[1765909980967,0.42109,87761.0,87760.0,0.03157]
[1765909981362,0.42109,87761.0,87752.0,0.04313899]
[1765909981363,0.06029,87753.0,87752.0,0.04313899]
[1765909981557,0.06029,87753.0,87752.0,0.06131089]
[1765909981763,0.4324881,87753.0,87752.0,0.00017089]
[1765909982065,0.06029,87753.0,87752.0,0.06131089]
[1765909982566,0.03033,87753.0,87752.0,0.06131089]
[1765909982766,0.06029,87753.0,87752.0,0.06131089]
[1765909983175,0.42109,87753.0,87752.0,0.00017089]
[1765909984570,0.0706196,87741.0,87740.0,0.00099999]
[1765909984869,0.06937,87738.0,87729.0,0.3608]
[1765909985058,0.0693709,87731.0,87730.0,0.00099999]
[1765909985255,0.05797,87729.0,87728.0,0.0114013]
[1765909985462,0.05797,87729.0,87728.0,0.0695613]
[1765909987777,0.05797,87727.0,87726.0,0.3608]
[1765909987967,0.05797,87724.0,87723.0,0.0412619]
[1765909988277,0.05814099,87737.0,87736.0,0.05816]
[1765909988579,0.07479,87730.0,87729.0,0.4303611]
[1765909988962,0.05797,87730.0,87729.0,0.4303611]
[1765909989267,0.07479,87730.0,87729.0,0.4303611]
[1765909989775,0.05797,87735.0,87734.0,0.0397005]
[1765909990075,0.02925099,87737.0,87736.0,0.05816]
[1765909990271,0.05814099,87737.0,87736.0,0.05816]
[1765909990673,0.05814099,87737.0,87736.0,0.02986]
[1765909990878,0.05797,87732.0,87731.0,0.0695609]
[1765909991572,0.0693708,87732.0,87731.0,0.0695609]
[1765909992178,0.05797,87724.0,87723.0,0.0695618]
[1765909992978,0.07479,87730.0,87729.0,0.0695612]
[1765909993179,0.07479,87730.0,87729.0,0.4303612]
[1765909994875,0.05797,87736.0,87735.0,0.0695604]
[1765909995176,0.02908,87736.0,87735.0,0.0695604]
[1765909995362,0.00017099,87737.0,87736.0,0.05816]
[1765909995562,0.02925099,87737.0,87736.0,0.05816]
[1765909995765,0.05814099,87737.0,87736.0,0.05816]
[1765909996172,0.02925099,87737.0,87736.0,0.05816]
[1765909996578,0.05814099,87737.0,87736.0,0.05916]
[1765909996767,0.05814099,87737.0,87736.0,0.06016]
[1765909998078,0.00017099,87737.0,87736.0,0.06016]
[1765909998870,0.00017099,87737.0,87736.0,0.42096]
[1765909999973,0.00017099,87737.0,87736.0,0.46142625]
[1765910000373,0.00017099,87737.0,87736.0,0.42096]
[1765910003468,0.05814099,87737.0,87736.0,0.42096]
[1765910003674,0.06954119,87737.0,87736.0,0.42096]
[1765910003985,0.06954119,87737.0,87736.0,0.3628]
[1765910004282,0.06954119,87737.0,87736.0,0.42096]
[1765910004869,0.06954119,87737.0,87736.0,0.41996]
[1765910005385,0.06954119,87737.0,87736.0,0.41896]
[1765910009788,0.05814099,87737.0,87736.0,0.41896]
[1765910012087,0.05814099,87737.0,87736.0,0.4303603]
[1765910012388,0.05814099,87737.0,87736.0,0.41896]
[1765910012687,0.05814099,87737.0,87736.0,0.4303603]
[1765910013081,0.05814099,87737.0,87736.0,0.3608]
[1765910013287,0.05814099,87737.0,87736.0,0.39066]
[1765910013587,0.05814099,87737.0,87736.0,0.3608]
[1765910013986,0.05814099,87737.0,87736.0,0.41794]
[1765910014188,0.05814099,87737.0,87736.0,0.3608]
[1765910014583,0.05814099,87737.0,87736.0,0.41829]
[1765910014785,0.00017099,87737.0,87736.0,0.43325]
[1765910014988,0.00117099,87737.0,87736.0,0.43325]
[1765910015689,0.00017099,87737.0,87736.0,0.43325]
[1765910015890,0.00117099,87737.0,87736.0,0.43325]
[1765910017384,0.00117099,87737.0,87736.0,0.43525]
[1765910017584,0.00017099,87737.0,87736.0,0.43525]
[1765910017788,0.00017099,87737.0,87736.0,0.43725]
[1765910018492,0.0681484,87751.0,87750.0,0.0688885]
[1765910018787,0.0681484,87751.0,87750.0,0.4296885]
[1765910020082,0.05675,87758.0,87757.0,0.05749]
[1765910020286,0.0681474,87758.0,87757.0,0.05749]
[1765910021392,0.0701474,87758.0,87757.0,0.05749]
[1765910021890,0.0701474,87758.0,87750.0,0.38998]
[1765910021891,0.0681483,87751.0,87750.0,0.38998]
[1765910022091,0.0681483,87751.0,87750.0,0.41829]
[1765910022285,0.02815,87751.0,87750.0,0.41829]
[1765910022598,0.0113982,87752.0,87751.0,0.0688883]
[1765910023099,0.0395482,87752.0,87751.0,0.0688883]
[1765910023295,0.0113982,87752.0,87751.0,0.0688883]
[1765910023491,0.0681482,87752.0,87751.0,0.0688883]
[1765910023691,0.0845082,87752.0,87751.0,0.0688883]
[1765910023893,0.05675,87751.0,87750.0,0.3608]
[1765910024298,0.05675,87751.0,87750.0,0.41829]
[1765910026493,0.00017073,87759.0,87758.0,0.0688874]
[1765910026697,0.00017073,87759.0,87758.0,0.4296874]
[1765910028397,0.00117073,87759.0,87758.0,0.4296874]
[1765910028596,0.00217073,87759.0,87758.0,0.4296874]
[1765910030301,0.0113956,87773.0,87772.0,0.0688856]
[1765910030502,0.1248944,87781.0,87780.0,0.05749]
[1765910031006,0.0681444,87781.0,87780.0,0.05749]
[1765910031704,0.0711444,87781.0,87780.0,0.05749]
[1765910032098,0.003,87781.0,87780.0,0.05749]
[1765910033105,0.02815,87785.0,87784.0,0.05749]
[1765910033899,0.02815,87788.0,87787.0,0.0688837]
[1765910034310,0.05675,87788.0,87787.0,0.0688837]
[1765910036602,0.05675,87788.0,87787.0,0.0698837]
[1765910037200,0.05675,87788.0,87787.0,0.0708837]
[1765910037798,0.05675,87788.0,87787.0,0.0698837]
[1765910039301,0.4289429,87793.0,87792.0,0.05749]
[1765910039505,0.41755,87793.0,87792.0,0.05749]
[1765910039806,0.3608,87793.0,87792.0,0.05749]
[1765910040506,0.6608,87806.0,87791.0,0.0113931]
[1765910040507,0.0845009,87808.0,87807.0,0.05749]
[1765910041606,0.0845009,87808.0,87807.0,0.02918]
[1765910041803,0.05675,87806.0,87805.0,0.0405713]
[1765910041998,0.05675,87806.0,87805.0,0.0688813]
[1765910042303,0.0875009,87808.0,87807.0,0.05749]
[1765910043404,0.0865009,87808.0,87807.0,0.05749]
[1765910044109,0.03015,87808.0,87807.0,0.05749]
[1765910044306,0.002,87808.0,87807.0,0.05749]
[1765910045108,0.002,87808.0,87807.0,0.41829]
[1765910045308,0.002,87808.0,87799.0,0.00017089]
[1765910045309,0.0670516,87803.0,87802.0,0.05714]
[1765910046204,0.02849,87803.0,87802.0,0.05714]
[1765910046411,0.002,87808.0,87807.0,0.0685311]
[1765910046606,0.002,87808.0,87807.0,0.4293311]
[1765910046908,0.001,87808.0,87807.0,0.4293311]
[1765910047113,0.0670505,87812.0,87811.0,0.0685305]
[1765910047414,0.05566,87812.0,87811.0,0.0685305]
[1765910047804,0.05566,87812.0,87811.0,0.05714]
[1765910048004,0.05566,87812.0,87811.0,0.02976]
[1765910048208,0.0839409,87808.0,87807.0,0.39056]
[1765910048515,0.0670518,87801.0,87800.0,0.05813999]
[1765910048903,0.0670518,87801.0,87800.0,0.05714]
[1765910049308,0.0670518,87801.0,87799.0,0.00017089]
[1765910049309,0.07255,87800.0,87799.0,0.00017089]
[1765910051419,0.07355,87800.0,87799.0,0.00017089]
[1765910054411,0.07355,87800.0,87799.0,0.05731089]
[1765910055109,0.07355,87800.0,87799.0,0.00017089]
[1765910056605,0.07355,87800.0,87799.0,0.02993089]
[1765910057220,0.07255,87800.0,87799.0,0.02993089]
[1765910059017,0.07255,87800.0,87799.0,0.00017089]
[1765910059219,0.0670531,87791.0,87790.0,0.3608]
[1765910059422,0.0670554,87774.0,87773.0,0.41794]
[1765910060018,0.0670554,87774.0,87773.0,0.39056]
[1765910060923,0.0670554,87774.0,87773.0,0.39156]
[1765910061914,0.0670554,87774.0,87773.0,0.3618]
[1765910062115,0.0670554,87774.0,87773.0,0.001]
[1765910062316,0.0670564,87766.0,87765.0,0.41811089]
[1765910062516,0.0670564,87766.0,87765.0,0.39073089]
[1765910062919,0.0670564,87766.0,87765.0,0.41811089]
[1765910063126,0.05566,87766.0,87765.0,0.41811089]
[1765910065126,0.52746,87774.0,87773.0,0.05714]
[1765910065428,0.5388554,87774.0,87773.0,0.05714]
[1765910069227,0.07255,87766.0,87765.0,0.36097089]
[1765910069429,0.07255,87766.0,87765.0,0.00017089]
[1765910069919,0.07255,87766.0,87765.0,0.05714]
[1765910070121,0.05566,87769.0,87768.0,0.05714]
[1765910070330,0.067056,87769.0,87768.0,0.05714]
[1765910071132,0.067056,87769.0,87768.0,0.02976]
[1765910071335,0.0670566,87764.0,87763.0,0.41794]
[1765910071636,0.02849,87764.0,87763.0,0.41794]
[1765910071837,0.001,87766.0,87765.0,0.05714]
[1765910072335,0.07255,87768.0,87767.0,0.05714]
[1765910073137,0.07255,87768.0,87766.0,0.0113964]
[1765910073138,0.0670557,87772.0,87771.0,0.0685357]
[1765910073434,0.05566,87772.0,87771.0,0.0685357]
[1765910073634,0.02849,87772.0,87771.0,0.0685357]
[1765910073827,0.05566,87772.0,87771.0,0.0685357]
[1765910074832,0.05566,87772.0,87771.0,0.0695357]
[1765910075337,0.05566,87772.0,87771.0,0.05814]
[1765910075837,0.05566,87772.0,87771.0,0.05914]
[1765910080429,0.05566,87772.0,87771.0,0.03176]
[1765910080638,0.05566,87772.0,87771.0,0.05979]
[1765910084243,0.05566,87772.0,87771.0,0.002]
[1765910084638,0.05566,87772.0,87771.0,0.05909]
[1765910085637,0.05566,87772.0,87771.0,0.05809]
[1765910085837,0.05666,87772.0,87771.0,0.05809]
[1765910086143,0.05666,87772.0,87771.0,0.05709]
[1765910086945,0.05566,87772.0,87771.0,0.05709]